bitfinex/quotes_ETHUSD_20220220
["timestamp","ask_amount","ask_price","bid_price","bid_amount"]
[1645383938582,0.00096868,2660.9,2660.6,1.12147971]
[1645383939479,1.21428158,2661.4,2660.6,1.12147971]
[1645383939779,0.00220136,2660.9,2660.6,1.12147971]
[1645383940778,0.18909287,2661.4,2660.6,1.12147971]
[1645383940979,0.00220136,2660.9,2660.6,1.12147971]
[1645383941480,0.00119504,2660.8,2660.6,1.12147971]
[1645383948395,0.00119504,2660.8,2660.7,16.54779901]
[1645383948597,1e-08,2660.9,2660.8,14.0]
[1645383948795,1e-08,2660.9,2660.8,13.04779901]
[1645383948999,1e-08,2660.9,2660.8,16.54779901]
[1645383949194,1.171,2661.7,2660.8,16.54779901]
[1645383949434,1.171,2661.7,2660.9,13.04779901]
[1645383949633,1.171,2661.7,2661.0,5.09779901]
[1645383949833,1.171,2661.7,2661.0,3.5]
[1645383950636,0.00096711,2661.5,2661.1,1.10782136]
[1645383951036,0.00096711,2661.5,2661.2,3.5]
[1645383951237,0.00096711,2661.5,2661.1,1.10782136]
[1645383951439,0.00096711,2661.5,2661.2,3.5]
[1645383951648,0.25,2662.3,2661.3,1.59739219]
[1645383951839,0.25,2662.3,2661.4,14.95]
[1645383952638,5.39254533,2662.8,2662.2,0.88903851]
[1645383952839,1.13584533,2662.8,2662.2,0.88903851]
[1645383953040,0.94814533,2662.8,2662.2,0.88903851]
[1645383954082,0.94814533,2662.8,2661.9,1.1399]
[1645383954289,0.00195463,2662.6,2661.9,12.5899]
[1645383955084,0.94814533,2662.8,2661.9,12.5899]
[1645383955283,0.94814533,2662.8,2662.1,1.0989091]
[1645383955485,0.00195472,2662.4,2662.1,1.0989091]
[1645383956288,0.94814533,2662.8,2662.1,1.0989091]
[1645383956688,0.00195472,2662.4,2662.1,1.0989091]
[1645383957333,0.00195472,2662.4,2662.2,3.5]
[1645383957533,1.5,2662.6,2662.2,3.5]
[1645383957733,1.5,2662.6,2662.3,11.45]
[1645383957935,0.00199036,2662.4,2662.3,11.45]
[1645383958333,0.00199036,2662.4,2662.2,3.5]
[1645383958533,0.00199036,2662.4,2662.3,11.45]
[1645383958739,1.5,2662.6,2662.3,11.45]
[1645383958935,0.00199034,2662.4,2662.3,11.45]
[1645383959135,0.00199034,2662.4,2662.3,12.30992572]
[1645383959936,1.5,2662.6,2662.3,12.30992572]
[1645383960137,0.00199032,2662.5,2662.3,12.30992572]
[1645383961289,1.5,2662.6,2662.3,12.30992572]
[1645383961481,0.00198632,2662.5,2662.3,12.30992572]
[1645383962283,0.0010537,2662.5,2662.3,12.30992572]
[1645383962683,0.00304002,2662.5,2662.3,12.30992572]
[1645383963484,0.0010537,2662.5,2662.3,12.30992572]
[1645383963783,0.00202805,2662.5,2662.3,12.30992572]
[1645383964655,0.0510537,2662.5,2662.3,12.30992572]
[1645383964848,0.0510537,2662.5,2661.9,1.1399]
[1645383965047,0.05304115,2662.5,2661.9,1.1399]
[1645383966046,1.0080393,2662.4,2661.9,1.1399]
[1645383966246,0.00198753,2662.3,2661.8,0.88125179]
[1645383967254,1.00909084,2662.4,2661.8,0.88125179]
[1645383967449,0.00198758,2662.2,2661.7,5.9793]
[1645383967651,0.00198758,2662.2,2661.5,4.7257]
[1645383968393,0.1877,2662.3,2661.3,3.0172]
[1645383968596,1.10975579,2661.8,2661.2,0.1877]
[1645383969798,0.00214357,2661.6,2661.2,0.18611226]
[1645383969994,0.00214357,2661.6,2661.2,1.0653956]
[1645383970800,0.1877,2662.1,2661.2,1.0653956]
[1645383971199,0.00214361,2661.5,2661.2,1.0653956]
[1645383972033,0.18989482,2662.1,2661.2,1.0653956]
[1645383972232,0.86208774,2661.7,2661.0,1.2392]
[1645383972833,0.83897774,2661.7,2661.0,1.2392]
[1645383973232,0.82977774,2661.7,2661.0,1.2392]
[1645383974434,1.0,2662.1,2661.0,1.2392]
[1645383974834,1.71803482,2662.2,2661.0,1.2392]
[1645383975788,0.00234411,2661.7,2661.5,1.04250387]
[1645383976884,0.00211105,2661.6,2661.5,1.04250387]
[1645383977883,0.00211105,2661.6,2661.2,3.0275]
[1645383979537,0.00445516,2661.6,2661.3,0.85917598]
[1645383980344,0.00211105,2661.6,2661.3,0.85917598]
[1645383980539,0.00445518,2661.6,2661.3,0.85917598]
[1645383981541,0.00211105,2661.6,2661.3,0.85917598]
[1645383981742,0.00445518,2661.6,2661.3,0.85917598]
[1645383982743,0.00211105,2661.6,2661.3,0.85917598]
[1645383982948,0.00445518,2661.6,2661.3,0.85917598]
[1645383983197,0.00445518,2661.6,2661.0,1.2392]
[1645383983890,0.00211105,2661.6,2660.5,3.0383]
[1645383984092,3.63341105,2661.6,2660.5,3.0383]
[1645383984386,1.0,2661.5,2660.5,3.0383]
[1645383984587,0.99187149,2661.0,2660.4,1.10455786]
[1645383984787,1.0,2661.3,2660.4,1.10455786]
[1645383985188,1.3,2661.3,2660.4,1.10455786]
[1645383985391,3.5,2661.2,2660.4,1.10455786]
[1645383985694,1.6,2661.3,2660.4,1.10455786]
[1645383986090,3.5,2661.2,2660.4,1.10455786]
[1645383986291,1.08951046,2661.2,2660.4,1.10455786]
[1645383986490,1.0,2661.1,2660.4,1.10455786]
[1645383986691,0.6,2661.3,2660.4,1.10455786]
[1645383986937,3.5,2661.3,2660.4,1.10455786]
[1645383987137,3.80210892,2661.5,2660.4,1.10455786]
[1645383987338,1.0,2661.4,2660.4,1.10455786]
[1645383987538,4.37944222,2661.3,2660.8,1.01900288]
[1645383987738,4.37944222,2661.3,2661.0,0.328]
[1645383987940,0.00210892,2661.5,2661.0,0.328]
[1645383989339,0.00210892,2661.5,2661.2,1.17187596]
[1645383990141,0.00210892,2661.5,2661.0,0.328]
[1645383991385,0.00210892,2661.5,2661.1,1.01996568]
[1645383991786,0.00210255,2661.2,2661.1,1.01996568]
[1645383994738,0.00210255,2661.2,2661.1,4.51996568]
[1645383994939,0.00210255,2661.2,2661.1,15.96996568]
[1645383995537,0.00210255,2661.2,2661.1,4.51884637]
[1645383996138,3.00210255,2661.4,2661.1,4.51884637]
[1645383996336,3.00210255,2661.4,2661.1,15.96884637]
[1645383996537,3.00210255,2661.4,2661.3,11.45]
[1645383996738,3.00210255,2661.4,2661.3,14.95]
[1645383997136,3.00210255,2661.4,2661.3,11.45]
[1645383997536,3.00210255,2661.4,2661.1,1.01884637]
[1645383998793,3.00210255,2661.4,2661.0,0.328]
[1645384000892,2.67510255,2661.4,2660.9,1.18519483]
[1645384002549,2.67510255,2661.4,2660.5,1.126]
[1645384003650,2.67510255,2661.4,2660.9,1.12660213]
[1645384006188,2.67510255,2661.4,2660.5,1.126]
[1645384006189,2.67510255,2661.4,2661.3,0.93353066]
[1645384008091,2.67510255,2661.4,2660.6,6.3445]
[1645384008289,2.67510255,2661.4,2660.6,17.7945]
[1645384008589,2.67510255,2661.4,2660.7,11.45]
[1645384008789,2.67510255,2661.4,2660.8,3.5]
[1645384009193,2.67510255,2661.4,2661.1,1.11733227]
[1645384012061,2.67510255,2661.4,2660.7,3.5]
[1645384012262,2.67510255,2661.4,2660.6,2.8445]
[1645384012461,2.67510255,2661.4,2660.7,1.5977137]
[1645384012961,2.67510255,2661.4,2660.6,2.8445]
[1645384013390,0.89796149,2661.2,2660.6,3.76538864]
[1645384013590,2.67510255,2661.4,2660.6,3.76538864]
[1645384014205,3.5,2661.3,2660.3,0.00938051]
[1645384014403,4.5,2661.3,2660.3,0.00938051]
[1645384014596,4.6313,2661.3,2660.3,0.00938051]
[1645384015196,4.6313,2661.3,2660.2,1.4007]
[1645384015495,1.03006373,2661.0,2660.4,1.16436104]
[1645384019151,0.00194651,2661.3,2660.4,12.61436104]
[1645384019346,0.00194651,2661.3,2660.5,13.04774967]
[1645384019551,0.00194651,2661.3,2660.6,5.09774967]
[1645384019745,0.00194651,2661.3,2660.7,1.59774967]
[1645384020245,0.00194651,2661.3,2661.1,0.89193889]
[1645384020896,0.00194651,2661.3,2660.6,4.2696]
[1645384021094,0.00194651,2661.3,2660.7,1.59767543]
[1645384021294,2.673,2661.4,2660.7,1.59767543]
[1645384021295,0.00193802,2660.9,2660.7,1.59767543]
[1645384021498,0.00193802,2660.9,2660.6,4.2696]
[1645384021894,0.00193802,2660.9,2660.6,4.26855969]
[1645384022098,0.00193802,2660.9,2660.7,1.03268694]
[1645384023696,2.673,2661.4,2660.7,1.03268694]
[1645384024746,2.673,2661.4,2661.1,1.05312541]
[1645384032546,0.00218354,2661.3,2661.1,1.05312541]
[1645384032746,2.673,2661.4,2661.1,1.05312541]
[1645384032747,2.62518354,2661.4,2661.1,1.05312541]
[1645384033348,2.62518354,2661.4,2661.1,12.50312541]
[1645384035150,2.57518354,2661.4,2661.1,12.50312541]
[1645384036591,2.57518354,2661.4,2661.1,1.05312541]
[1645384036794,0.00211075,2661.3,2661.1,1.05312541]
[1645384039564,0.00211075,2661.3,2660.6,15.71855969]
[1645384039768,0.00211075,2661.3,2660.7,1.5977058]
[1645384040563,0.00211075,2661.3,2660.9,1.08807263]
[1645384041165,2.52729429,2661.4,2660.9,1.08807263]
[1645384041567,2.52729429,2661.4,2661.0,1.59753728]
[1645384041770,0.00210864,2661.2,2661.0,1.59753728]
[1645384042467,0.00210864,2661.2,2661.0,13.04753728]
[1645384042671,0.00210864,2661.2,2661.1,1.59753728]
[1645384043074,0.00210864,2661.2,2661.1,13.04753728]
[1645384045504,8.64e-06,2661.2,2661.1,13.04753728]
[1645384045702,2.52729429,2661.4,2661.3,1.17769866]
[1645384045905,0.00234401,2661.6,2661.5,11.45]
[1645384046103,4.401e-05,2661.6,2661.5,16.54753728]
[1645384046506,0.05,2662.5,2661.9,11.45]
[1645384046707,0.05,2662.5,2662.0,14.95]
[1645384046949,0.05,2662.5,2662.2,11.45]
[1645384047146,0.05,2662.5,2662.3,3.5]
[1645384048051,0.05,2662.5,2662.1,0.86549673]
[1645384049152,0.00234379,2662.4,2661.6,0.2471]
[1645384049553,0.13364379,2662.4,2661.6,0.2471]
[1645384050150,0.1313,2662.4,2661.6,0.2471]
[1645384050350,0.00234393,2662.1,2661.6,0.2471]
[1645384050554,0.95905439,2661.9,2661.6,0.2471]
[1645384051200,0.40905439,2661.9,2661.6,0.2471]
[1645384051600,0.41139843,2661.9,2661.6,0.2471]
[1645384052001,0.00234404,2661.9,2661.6,0.2471]
[1645384052401,0.1313,2662.4,2661.6,0.2471]
[1645384052701,0.00234404,2661.9,2661.6,0.2471]
[1645384053505,0.84241856,2661.8,2661.6,0.2471]
[1645384054551,3.5,2661.7,2661.6,0.2471]
[1645384054855,3.5,2661.7,2661.2,0.00079136]
[1645384054856,9.5,2661.7,2661.2,0.00079136]
[1645384055155,6.131,2661.6,2661.2,0.00079136]
[1645384055352,5.3,2661.4,2661.2,0.00079136]
[1645384055658,1.10843576,2661.3,2661.2,0.00079136]
[1645384055848,2.10843576,2661.3,2661.2,0.00079136]
[1645384057050,5.60843576,2661.3,2661.2,0.00079136]
[1645384058898,10.60843576,2661.3,2661.2,0.00079136]
[1645384059100,5.60843576,2661.3,2661.2,0.00079136]
[1645384060296,5.47763576,2661.3,2661.2,0.00079136]
[1645384061300,5.4795399,2661.3,2661.2,0.00079136]
[1645384062755,10.5,2661.2,2660.6,0.00937978]
[1645384062957,3.5,2661.1,2660.6,0.00937978]
[1645384063156,3.8,2661.1,2660.6,0.00937978]
[1645384063357,1.3,2661.0,2659.7,0.00320753]
[1645384063583,1.3,2661.0,2660.5,0.00234487]
[1645384063958,0.9657127,2660.9,2660.5,0.00234487]
[1645384064158,0.9657127,2660.9,2660.5,0.0055524]
[1645384064358,1.2657127,2660.9,2660.5,0.0055524]
[1645384064557,1.2657127,2660.9,2660.5,0.00320753]
[1645384064760,4.7657127,2660.9,2660.5,0.00555233]
[1645384064959,4.7657127,2660.9,2660.5,0.0023448]
[1645384064960,5.7657127,2660.9,2660.5,0.0023448]
[1645384065160,4.7657127,2660.9,2660.5,0.0023448]
[1645384065358,1.0,2660.8,2660.5,0.0023448]
[1645384065559,1.3,2660.8,2660.5,0.0023448]
[1645384065817,1.3,2660.8,2659.7,0.00320753]
[1645384066013,1.3,2660.8,2660.5,0.00234478]
[1645384066014,3.5,2660.7,2660.5,0.00234478]
[1645384066219,2.5657127,2660.9,2660.5,0.00234478]
[1645384066418,1.5657127,2660.9,2660.5,0.00234478]
[1645384066912,2.5657127,2660.9,2660.3,0.00320753]
[1645384067113,3.5,2660.8,2660.5,0.0023448]
[1645384067312,1.0,2660.7,2660.5,0.0023448]
[1645384067712,2.5657127,2660.9,2660.5,0.0023448]
[1645384067915,1.5657127,2660.9,2660.5,0.0023448]
[1645384068114,1.0,2660.8,2660.3,0.00320753]
[1645384068316,2.5657127,2660.9,2660.5,0.0023448]
[1645384068913,1.58978194,2660.9,2660.5,0.0023448]
[1645384069116,0.58978194,2660.9,2660.5,0.0023448]
[1645384069315,0.28978194,2660.9,2660.2,0.9505927]
[1645384069558,0.3,2661.0,2660.5,0.0023448]
[1645384069760,1.0,2660.9,2660.5,0.0023448]
[1645384069958,0.3,2661.0,2660.7,1.02926713]
[1645384070457,0.00189992,2661.1,2660.7,1.02926713]
[1645384071058,3.50189992,2661.1,2660.7,1.02926713]
[1645384071261,0.00189359,2660.8,2660.7,1.02926713]
[1645384071457,0.00189359,2660.8,2660.5,0.00234487]
[1645384071658,0.00189359,2660.8,2659.6,15.6446]
[1645384071858,0.00189359,2660.8,2660.5,0.00234483]
[1645384072759,0.00189359,2660.8,2660.5,0.90661169]
[1645384072961,0.00189359,2660.8,2660.5,0.90426686]
[1645384073214,0.00189359,2660.8,2660.5,0.90661164]
[1645384074012,0.00189359,2660.8,2660.5,0.90426686]
[1645384074415,0.00189359,2660.8,2660.5,0.90661164]
[1645384074817,0.00189359,2660.8,2660.5,0.00234478]
[1645384075315,0.00189359,2660.8,2659.6,4.1946]
[1645384075514,0.00189359,2660.8,2660.5,0.00234478]
[1645384075916,1.15368684,2660.8,2660.5,0.00234478]
[1645384076421,1.15368684,2660.8,2660.2,0.87975413]
[1645384076615,0.00189359,2660.8,2660.2,0.87975413]
[1645384076814,0.00189359,2660.8,2660.5,0.00234478]
[1645384077752,0.00189359,2660.8,2660.2,0.87975413]
[1645384077953,0.00189359,2660.8,2660.6,0.86764993]
[1645384078754,0.00189359,2660.8,2660.5,0.00234478]
[1645384078958,0.00189359,2660.8,2659.6,4.1946]
[1645384079154,0.00189359,2660.8,2660.5,0.0023448]
[1645384080160,1.25189359,2660.9,2660.4,1.10359639]
[1645384080356,1.0,2660.9,2660.5,0.00234478]
[1645384080556,3.5,2660.8,2660.5,0.00234478]
[1645384080802,1.0,2660.9,2660.5,0.00234478]
[1645384081001,1.0,2660.7,2660.5,0.00234478]
[1645384081201,1.3,2660.9,2659.6,4.1946]
[1645384081403,0.0018876,2660.7,2659.6,4.1946]
[1645384081607,0.0018876,2660.7,2660.5,0.0023448]
[1645384081802,1.0018876,2660.7,2660.5,0.0023448]
[1645384082002,0.0018876,2660.7,2660.5,0.0023448]
[1645384082403,0.0018876,2660.7,2660.2,0.00938042]
[1645384082604,1.0479267,2660.7,2660.1,1.0368036]
[1645384082804,1.0479267,2660.7,2660.5,0.0023448]
[1645384083103,0.0018876,2660.7,2660.5,0.0023448]
[1645384083709,0.0018876,2660.7,2660.1,1.0368036]
[1645384083905,0.0018876,2660.7,2660.5,0.0023448]
[1645384084210,0.0018876,2660.7,2660.6,0.87992228]
[1645384085062,0.74109063,2661.5,2660.7,4.0]
[1645384085264,0.25,2661.6,2660.6,0.87992228]
[1645384085460,1.15378775,2661.5,2661.0,0.97832023]
[1645384086059,1.45378775,2661.5,2661.0,0.97832023]
[1645384086263,1.45378775,2661.5,2660.1,0.00319033]
[1645384086460,1.45378775,2661.5,2660.6,0.00937978]
[1645384087362,0.99314352,2661.1,2660.5,1.04210389]
[1645384087561,0.99314352,2661.1,2660.5,0.01491506]
[1645384087762,0.99314352,2661.1,2660.5,0.01172473]
[1645384088400,2.1755,2661.3,2660.5,0.00937978]
[1645384088700,2.4755,2661.3,2660.1,0.00319033]
[1645384088904,2.7755,2661.3,2660.5,0.00234485]
[1645384089505,4.40224626,2661.2,2660.6,0.96477059]
[1645384089702,0.90224626,2661.2,2660.6,0.96477059]
[1645384089903,1.0,2661.1,2660.6,0.96477059]
[1645384090203,0.90224626,2661.2,2660.6,0.96477059]
[1645384090702,1.90224626,2661.2,2660.6,0.96477059]
[1645384091304,5.40224626,2661.2,2660.6,0.96477059]
[1645384091509,5.40224626,2661.2,2660.5,0.00234489]
[1645384092153,5.40224626,2661.2,2660.1,0.00319033]
[1645384092352,5.40224626,2661.2,2660.5,0.00234487]
[1645384092549,0.0017679,2661.0,2660.5,0.00234487]
[1645384093249,0.0017679,2661.0,2660.4,0.00319033]
[1645384093648,0.0017679,2661.0,2660.5,0.00214282]
[1645384094050,0.0017679,2661.0,2660.7,0.86759185]
[1645384094248,0.0017679,2661.0,2660.5,0.00214282]
[1645384094453,0.0017679,2661.0,2659.9,0.00319033]
[1645384094656,0.1312,2660.9,2659.7,0.00319033]
[1645384094850,0.1312,2660.9,2660.5,0.00214285]
[1645384095353,1.16893199,2660.8,2660.5,0.00214285]
[1645384095551,3.5,2660.7,2660.5,0.00214285]
[1645384095802,1.0,2660.6,2660.3,0.00319033]
[1645384096000,1.3,2660.6,2660.5,0.00214278]
[1645384096200,1.6,2660.6,2660.5,0.00214278]
[1645384096406,10.2312,2660.6,2660.5,0.00214278]
[1645384096801,10.31731616,2660.6,2660.5,0.00214278]
[1645384096999,10.31731616,2660.6,2659.6,0.00319033]
[1645384097207,0.94107,2660.3,2660.0,0.00482613]
[1645384097402,3.5,2660.2,2660.0,0.00482613]
[1645384097601,0.87637215,2660.1,2660.0,0.00482613]
[1645384097800,1.3,2660.1,2660.0,0.00482613]
[1645384097999,1.3,2660.1,2659.6,0.00319033]
[1645384098501,1.3,2660.1,2659.9,0.00217104]
[1645384099301,2.45754699,2660.1,2659.6,0.00319033]
[1645384099553,2.45754699,2660.1,2659.9,0.00217106]
[1645384100558,2.45754699,2660.1,2659.6,0.00319033]
[1645384100756,1.3,2660.1,2659.9,0.00217106]
[1645384101555,1.3017489,2660.1,2659.9,0.00217106]
[1645384101760,1.09135046,2660.0,2659.6,0.00319033]
[1645384101956,1.09135046,2660.0,2659.9,0.00216703]
[1645384102155,1.39135046,2660.0,2659.9,0.00216703]
[1645384102360,2.39135046,2660.0,2659.9,0.00216703]
[1645384102959,2.39135046,2660.0,2659.1,0.00319033]
[1645384103199,2.39135046,2660.0,2659.8,0.00216705]
[1645384103598,5.0,2659.9,2659.2,0.80128574]
[1645384103800,1.0,2659.8,2659.3,0.00319033]
[1645384104297,2.69135046,2660.0,2659.3,0.00319033]
[1645384105301,1.0,2659.9,2659.3,0.00319033]
[1645384105700,1.69232202,2660.0,2659.3,0.00319033]
[1645384106302,1.60271835,2660.0,2659.6,0.91822141]
[1645384106501,0.60174679,2660.0,2659.6,0.91822141]
[1645384106700,0.30174679,2660.0,2659.6,0.91822141]
[1645384106952,0.30271835,2660.0,2659.6,0.91822141]
[1645384107351,0.30271835,2660.0,2659.1,0.00319033]
[1645384107554,3.80271835,2660.0,2659.1,0.00319033]
[1645384107753,4.10174679,2660.0,2659.1,0.00319033]
[1645384107952,4.10174679,2660.0,2659.3,0.00216793]
[1645384108152,1.0,2659.9,2659.3,0.00216793]
[1645384108353,5.10174679,2660.0,2659.3,0.00216793]
[1645384108652,1.09299419,2659.7,2659.3,0.00216793]
[1645384108852,1.09299419,2659.7,2659.3,0.00319033]
[1645384109053,1.09299419,2659.7,2659.1,0.00319033]
[1645384109256,1.09299419,2659.7,2659.3,0.00220705]
[1645384109257,1.69299419,2659.7,2659.3,0.00220705]
[1645384109457,6.69299419,2659.7,2659.3,0.00220705]
[1645384109853,1.0,2659.6,2659.3,0.00220705]
[1645384110057,1.0,2659.6,2658.8,0.00319033]
[1645384110255,1.00671291,2659.2,2658.8,0.00319033]
[1645384110453,1.00671291,2659.2,2658.7,3.98018092]
[1645384110706,1.00671291,2659.2,2658.7,0.92008092]
[1645384111304,1.00671291,2659.2,2658.4,0.00319033]
[1645384111503,1.00671291,2659.2,2658.8,0.00220716]
[1645384112710,1.00671291,2659.2,2658.9,0.0021614]
[1645384113103,1.0,2659.6,2658.9,0.0021614]
[1645384113306,1.2718,2659.7,2658.9,0.0021614]
[1645384113504,1.1408,2659.7,2658.9,0.0021614]
[1645384113706,1.1408,2659.7,2658.8,0.00319033]
[1645384114109,2.21314647,2659.7,2659.2,0.00216126]
[1645384114307,1.07234647,2659.7,2659.2,0.00535159]
[1645384114955,1.07234647,2659.7,2659.2,0.00319033]
[1645384115153,1.07234647,2659.7,2659.3,0.00216124]
[1645384116154,1.07234647,2659.7,2658.8,0.00319033]
[1645384116354,0.00172777,2659.1,2658.9,1.07717778]
[1645384117354,0.00172777,2659.1,2658.8,0.00319033]
[1645384117554,0.00172777,2659.1,2658.9,0.00216804]
[1645384118605,0.00172777,2659.1,2658.9,1.08779265]
[1645384118808,0.00172777,2659.1,2658.9,1.08996069]
[1645384119805,0.00172777,2659.1,2658.9,1.08779265]
[1645384120005,0.00172777,2659.1,2658.9,1.08995973]
[1645384120708,0.00172777,2659.1,2658.9,0.00216708]
[1645384120906,0.00172777,2659.1,2658.8,0.00319033]
[1645384121107,0.00172777,2659.1,2658.6,7.38]
[1645384121309,1.24307566,2659.4,2658.9,0.00216708]
[1645384121807,3.8,2659.3,2658.9,0.00216708]
[1645384122062,3.8,2659.3,2658.7,0.00319033]
[1645384122260,1.08860854,2659.0,2658.7,0.00319033]
[1645384122464,3.5,2658.9,2658.6,0.00866945]
[1645384122864,6.0,2658.8,2658.6,0.00866945]
[1645384123062,3.63,2658.7,2658.6,0.00866945]
[1645384123266,3.8,2658.7,2658.2,0.00319033]
[1645384123461,0.88175345,2658.3,2658.2,0.00319033]
[1645384123662,0.88175345,2658.3,2658.2,0.00479777]
[1645384123864,0.88175345,2658.3,2657.2,6.08734391]
[1645384124062,0.88175345,2658.3,2657.6,1.15841095]
[1645384125063,1.48175345,2658.3,2657.6,1.15841095]
[1645384127209,1.48175345,2658.3,2657.8,0.00235143]
[1645384128206,1.48175345,2658.3,2657.6,1.15841095]
[1645384128411,1.48175345,2658.3,2657.9,0.00235139]
[1645384129455,1.48175345,2658.3,2657.6,1.15841095]
[1645384129657,1.48175345,2658.3,2658.0,0.00235137]
[1645384130660,0.88175345,2658.3,2657.6,1.15841095]
[1645384130860,0.88175345,2658.3,2658.0,0.00235134]
[1645384131561,0.00170875,2658.2,2658.0,0.00235134]
[1645384131761,0.00170875,2658.2,2657.6,1.15841095]
[1645384131961,0.00170875,2658.2,2658.0,0.00235134]
[1645384132963,0.00170875,2658.2,2657.6,1.15841095]
[1645384133208,0.00170875,2658.2,2658.0,0.00235137]
[1645384134209,0.00170875,2658.2,2657.6,1.15841095]
[1645384134411,0.00170875,2658.2,2658.0,0.00235137]
[1645384135311,0.00170875,2658.2,2657.6,1.15841095]
[1645384135712,0.00170875,2658.2,2658.0,0.00235137]
[1645384136313,0.00170664,2658.6,2658.0,0.00235137]
[1645384136514,0.00170664,2658.6,2657.8,11.45]
[1645384136965,0.00170664,2658.6,2658.1,0.91444196]
[1645384137967,0.00170664,2658.6,2658.1,0.91563799]
[1645384138168,0.00170664,2658.6,2658.1,12.36563799]
[1645384138367,0.00170664,2658.6,2658.1,0.91563799]
[1645384138568,0.00170664,2658.6,2658.1,1.21563799]
[1645384138771,0.00170664,2658.6,2658.2,0.94098]
[1645384138967,0.00170664,2658.6,2658.2,12.39098]
[1645384139170,0.00170664,2658.6,2658.2,12.57898]
[1645384139673,0.00170664,2658.6,2658.2,12.58215585]
[1645384140275,0.00170664,2658.6,2658.2,12.39415585]
[1645384141310,0.00171509,2658.9,2658.2,12.39415585]
[1645384141507,0.00171509,2658.9,2658.4,11.45]
[1645384141712,0.00171509,2658.9,2658.5,0.00317585]
[1645384142115,0.00171509,2658.9,2658.6,1.15034331]
[1645384142712,0.00171509,2658.9,2658.6,14.14115331]
[1645384142914,0.00171509,2658.9,2658.7,11.45]
[1645384143111,0.00171509,2658.9,2658.7,12.638]
[1645384143312,0.00171509,2658.9,2658.7,1.188]
[1645384143510,0.00171509,2658.9,2658.6,2.27915331]
[1645384143712,0.00171509,2658.9,2658.6,4.12392916]
[1645384143915,0.00171509,2658.9,2658.6,2.99194331]
[1645384144112,0.00171509,2658.9,2658.6,2.39194331]
[1645384144312,0.00171509,2658.9,2658.6,2.69194331]
[1645384144558,0.00171509,2658.9,2658.7,11.45]
[1645384144958,0.00171509,2658.9,2658.6,3.18311916]
[1645384145158,0.00171509,2658.9,2658.6,2.99511916]
[1645384145458,0.00171509,2658.9,2658.6,2.99424998]
[1645384147158,0.00386666,2659.1,2658.6,2.99424998]
[1645384147358,0.00172143,2659.1,2658.6,2.69511916]
[1645384147560,0.00386666,2659.1,2658.6,2.69511916]
[1645384147760,0.00386666,2659.1,2658.6,2.39511916]
[1645384148516,0.00172143,2659.1,2658.6,2.39511916]
[1645384148718,0.00270433,2659.1,2658.6,2.39511916]
[1645384149720,0.00172143,2659.1,2658.6,2.39511916]
[1645384150123,0.00389394,2659.1,2658.6,2.39511916]
[1645384150521,0.00389394,2659.1,2659.0,0.94867161]
[1645384150723,0.00389394,2659.1,2658.7,0.00317585]
[1645384150922,0.00389394,2659.1,2658.6,1.2416]
[1645384150923,0.00172143,2659.1,2658.6,1.2416]
[1645384151962,0.00172143,2659.1,2658.7,0.87526126]
[1645384152163,0.00172143,2659.1,2658.7,0.87843711]
[1645384152362,0.00396632,2659.1,2658.7,0.87843711]
[1645384153063,0.00396632,2659.1,2658.7,0.87526126]
[1645384153563,0.00396634,2659.1,2658.7,0.87526126]
[1645384154563,0.00172143,2659.1,2658.7,0.87526126]
[1645384154766,0.00396634,2659.1,2658.7,0.87526126]
[1645384155710,0.00172143,2659.1,2658.7,0.87526126]
[1645384157910,0.00172143,2659.1,2658.7,0.82526126]
[1645384159771,0.00407499,2659.1,2658.7,0.82526126]
[1645384160573,0.00172143,2659.1,2658.7,0.82526126]
[1645384160771,0.00407499,2659.1,2658.7,0.82526126]
[1645384161772,0.00172143,2659.1,2658.7,0.82526126]
[1645384161972,0.00407499,2659.1,2658.7,0.82526126]
[1645384162974,0.00172143,2659.1,2658.7,0.82526126]
[1645384163214,0.00288538,2659.1,2658.7,0.82526126]
[1645384164207,0.00172143,2659.1,2658.7,0.82526126]
[1645384164410,0.00288538,2659.1,2658.7,0.82526126]
[1645384165409,0.00172143,2659.1,2658.7,0.82526126]
[1645384165612,0.00407202,2659.1,2658.7,0.82526126]
[1645384166512,0.00172143,2659.1,2658.7,0.82526126]
[1645384166961,0.00407202,2659.1,2658.7,0.82526126]
[1645384167861,0.00172143,2659.1,2658.7,0.82526126]
[1645384168064,0.00407202,2659.1,2658.7,0.82526126]
[1645384168963,0.00172143,2659.1,2658.7,0.82526126]
[1645384169369,0.00407202,2659.1,2658.7,0.82526126]
[1645384169763,0.00407202,2659.1,2658.3,1.23377585]
[1645384170168,0.00172143,2659.1,2658.3,1.23377585]
[1645384170466,1.00407193,2659.1,2658.3,1.23377585]
[1645384170922,1.10876405,2658.7,2658.3,1.23377585]
[1645384171119,1.10876405,2658.7,2658.3,0.00317585]
[1645384171316,1.10876405,2658.7,2658.2,1.17423737]
[1645384171516,1.10876405,2658.7,2658.0,0.00317585]
[1645384171717,1.10876405,2658.7,2658.1,0.00235134]
[1645384171919,3.5,2658.6,2658.1,0.00235134]
[1645384172716,1.10179212,2658.2,2657.8,0.00317585]
[1645384172916,3.5,2658.8,2658.1,0.00235128]
[1645384173416,3.6313,2658.8,2658.1,0.00235128]
[1645384173817,3.6313,2658.8,2657.8,0.00317585]
[1645384174018,0.90894967,2658.4,2658.1,0.00235132]
[1645384175067,0.90894967,2658.4,2657.8,0.00317585]
[1645384175265,0.90894967,2658.4,2658.1,0.00235123]
[1645384176163,0.90894967,2658.4,2657.8,0.00317585]
[1645384176567,0.90894967,2658.4,2658.1,0.00235123]
[1645384177367,0.90894967,2658.4,2657.8,0.00317585]
[1645384177767,0.90894967,2658.4,2658.1,0.00119008]
[1645384178712,1.3,2658.7,2657.8,0.00317585]
[1645384178916,1.6,2658.7,2658.1,0.0023542]
[1645384179313,3.6313,2658.8,2658.1,0.0023542]
[1645384179714,3.6313,2658.8,2657.8,0.00317585]
[1645384179912,1.02654435,2658.7,2658.2,1.02825907]
[1645384180116,1.02654435,2658.7,2658.1,0.00235429]
[1645384180314,2.21174435,2658.7,2658.1,0.00235429]
[1645384180613,3.5,2658.6,2658.1,0.00111149]
[1645384180814,3.21174435,2658.7,2658.1,0.00111149]
[1645384181014,3.5,2658.6,2657.5,0.00317585]
[1645384181214,4.5,2658.6,2657.9,1.11041845]
[1645384181413,2.21174435,2658.7,2658.0,0.00317585]
[1645384181613,2.34294435,2658.7,2658.0,0.00317585]
[1645384181814,2.15774435,2658.7,2658.0,0.00317585]
[1645384182262,1.02654435,2658.7,2658.0,0.00317585]
[1645384182463,0.00185418,2658.3,2658.0,0.00317585]